[Event "Early-Titled-Tuesday-Blitz-January-30-2024"]
[Site "Chess.com"]
[Date "2024.01.30"]
[Round "1"]
[White "Gentlejimmy7"]
[Black "MoreChessJulia"]
[Result "1-0"]
[WhiteElo "2566"]
[BlackElo "2057"]
[TimeControl "180+1"]
[EndTime "8:02:55 PST"]
[Termination "Gentlejimmy7 won by checkmate"]

1. c4 {[%clk 0:02:57.1]} 1... c5 {[%clk 0:02:58.3]} 2. Nf3 {[%clk 0:02:54.6]}
2... Nc6 {[%clk 0:02:58.6]} 3. d4 {[%clk 0:02:53.8]} 3... g6 {[%clk 0:02:59]} 4.
d5 {[%clk 0:02:53.6]} 4... Nb8 {[%clk 0:02:57.5]} 5. h4 {[%clk 0:02:53.5]} 5...
h5 {[%clk 0:02:56.3]} 6. e4 {[%clk 0:02:41.7]} 6... d6 {[%clk 0:02:56.1]} 7. Nc3
{[%clk 0:02:40.4]} 7... Bg7 {[%clk 0:02:55.1]} 8. Be2 {[%clk 0:02:39.9]} 8...
Bxc3+ {[%clk 0:02:53.3]} 9. bxc3 {[%clk 0:02:39.2]} 9... Nf6 {[%clk 0:02:53.3]}
10. e5 {[%clk 0:02:33.4]} 10... dxe5 {[%clk 0:02:52.5]} 11. Nxe5 {[%clk
0:02:34.3]} 11... Nbd7 {[%clk 0:02:52.1]} 12. Nd3 {[%clk 0:02:32.4]} 12... Qa5
{[%clk 0:02:49.2]} 13. O-O {[%clk 0:02:29.7]} 13... Qxc3 {[%clk 0:02:48.4]} 14.
Bb2 {[%clk 0:02:27.3]} 14... Qa5 {[%clk 0:02:48.1]} 15. Nf4 {[%clk 0:02:09.9]}
15... O-O {[%clk 0:02:47.2]} 16. Qc2 {[%clk 0:02:09.6]} 16... Re8 {[%clk
0:02:44.6]} 17. Nxg6 {[%clk 0:02:08.2]} 17... fxg6 {[%clk 0:02:44.3]} 18. Qxg6+
{[%clk 0:02:09.1]} 18... Kf8 {[%clk 0:02:44.2]} 19. Bxh5 {[%clk 0:02:03.9]}
19... Nxh5 {[%clk 0:02:43.6]} 20. Qxh5 {[%clk 0:01:36.3]} 20... Qb6 {[%clk
0:02:42.9]} 21. Qh8+ {[%clk 0:01:25.3]} 21... Kf7 {[%clk 0:02:42.5]} 22. Qg7#
{[%clk 0:01:25.4]} 1-0

[Event "Early-Titled-Tuesday-Blitz-January-30-2024"]
[Site "Chess.com"]
[Date "2024.01.30"]
[Round "1"]
[White "pfalcon1949"]
[Black "Mikayel99"]
[Result "0-1"]
[WhiteElo "1942"]
[BlackElo "2558"]
[TimeControl "180+1"]
[EndTime "8:02:56 PST"]
[Termination "Mikayel99 won by resignation"]

1. e4 {[%clk 0:03:00.9]} 1... e6 {[%clk 0:02:59.5]} 2. d4 {[%clk 0:02:59.7]}
2... d5 {[%clk 0:03:00.1]} 3. Nc3 {[%clk 0:02:59.7]} 3... dxe4 {[%clk
0:02:58.7]} 4. Nxe4 {[%clk 0:02:59]} 4... Nd7 {[%clk 0:02:59.4]} 5. Bd3 {[%clk
0:02:58.1]} 5... Ngf6 {[%clk 0:02:59.2]} 6. Ng3 {[%clk 0:02:57.4]} 6... c5
{[%clk 0:02:56.7]} 7. Nf3 {[%clk 0:02:56.4]} 7... cxd4 {[%clk 0:02:56.2]} 8.
Nxd4 {[%clk 0:02:55.9]} 8... Bc5 {[%clk 0:02:56.5]} 9. Nb3 {[%clk 0:02:55]} 9...
Bb6 {[%clk 0:02:55.2]} 10. O-O {[%clk 0:02:54.6]} 10... O-O {[%clk 0:02:54.7]}
11. h3 {[%clk 0:02:53.4]} 11... Qc7 {[%clk 0:02:47.6]} 12. Bg5 {[%clk
0:02:49.6]} 12... Qxg3 {[%clk 0:02:45]} 13. Bxf6 {[%clk 0:02:47.6]} 13... Nxf6
{[%clk 0:02:45.6]} 14. Qe2 {[%clk 0:02:25.4]} 14... Qc7 {[%clk 0:02:39.9]} 15.
Rad1 {[%clk 0:02:23.9]} 15... Bd7 {[%clk 0:02:39.2]} 16. Rfe1 {[%clk 0:02:23.4]}
16... Bc6 {[%clk 0:02:39.4]} 17. c3 {[%clk 0:02:11.1]} 17... Rad8 {[%clk
0:02:38.7]} 18. Bb1 {[%clk 0:02:08.2]} 18... Rxd1 {[%clk 0:02:38.9]} 19. Rxd1
{[%clk 0:02:08.8]} 19... Rd8 {[%clk 0:02:39.5]} 20. Re1 {[%clk 0:02:06.8]} 20...
Qf4 {[%clk 0:02:33.2]} 21. Rf1 {[%clk 0:01:51.1]} 21... Qg5 {[%clk 0:02:31.6]}
0-1

[Event "Early-Titled-Tuesday-Blitz-January-30-2024"]
[Site "Chess.com"]
[Date "2024.01.30"]
[Round "1"]
[White "Shield12"]
[Black "Nouali_Mohamed"]
[Result "1-0"]
[WhiteElo "3007"]
[BlackElo "2531"]
[TimeControl "180+1"]
[EndTime "8:03:13 PST"]
[Termination "Shield12 won by resignation"]

1. e4 {[%clk 0:03:00.9]} 1... c5 {[%clk 0:02:51.8]} 2. Nf3 {[%clk 0:03:01]} 2...
Nc6 {[%clk 0:02:51.9]} 3. Bb5 {[%clk 0:03:00.7]} 3... Qc7 {[%clk 0:02:52.2]} 4.
Nc3 {[%clk 0:03:00.1]} 4... e6 {[%clk 0:02:51.7]} 5. Bxc6 {[%clk 0:02:56.6]}
5... Qxc6 {[%clk 0:02:51.4]} 6. d4 {[%clk 0:02:56]} 6... cxd4 {[%clk 0:02:52.3]}
7. Qxd4 {[%clk 0:02:55]} 7... a6 {[%clk 0:02:48.6]} 8. Bf4 {[%clk 0:02:53]} 8...
Nf6 {[%clk 0:02:29.9]} 9. O-O-O {[%clk 0:02:52.3]} 9... Bc5 {[%clk 0:02:27.5]}
10. Qd2 {[%clk 0:02:50.1]} 10... O-O {[%clk 0:02:10.6]} 11. Ne5 {[%clk
0:02:44.9]} 11... Nxe4 {[%clk 0:01:51.2]} 12. Qe1 {[%clk 0:02:32.5]} 1-0

[Event "Early-Titled-Tuesday-Blitz-January-30-2024"]
[Site "Chess.com"]
[Date "2024.01.30"]
[Round "1"]
[White "JoliyRoger"]
[Black "Duhless"]
[Result "0-1"]
[WhiteElo "2542"]
[BlackElo "3099"]
[TimeControl "180+1"]
[EndTime "8:03:14 PST"]
[Termination "Duhless won by resignation"]

1. d4 {[%clk 0:03:00.9]} 1... Nf6 {[%clk 0:02:59.8]} 2. Nf3 {[%clk 0:03:00.2]}
2... d5 {[%clk 0:02:59.6]} 3. c4 {[%clk 0:03:00.6]} 3... e6 {[%clk 0:02:59.5]}
4. e3 {[%clk 0:02:59]} 4... b6 {[%clk 0:02:58.2]} 5. Nc3 {[%clk 0:02:58.9]} 5...
Bb7 {[%clk 0:02:58.1]} 6. b3 {[%clk 0:02:57.3]} 6... Bd6 {[%clk 0:02:57.1]} 7.
Bb2 {[%clk 0:02:57.9]} 7... O-O {[%clk 0:02:56.6]} 8. Bd3 {[%clk 0:02:58.5]}
8... Nbd7 {[%clk 0:02:56.4]} 9. cxd5 {[%clk 0:02:56.1]} 9... exd5 {[%clk
0:02:55.9]} 10. O-O {[%clk 0:02:56.6]} 10... a6 {[%clk 0:02:54.5]} 11. Qc2
{[%clk 0:02:38]} 11... Re8 {[%clk 0:02:53.9]} 12. Ne2 {[%clk 0:02:29.3]} 12...
Rc8 {[%clk 0:02:51.9]} 13. Ng3 {[%clk 0:02:28.6]} 13... g6 {[%clk 0:02:49.3]}
14. Qe2 {[%clk 0:02:28.7]} 14... Ra8 {[%clk 0:02:45.8]} 15. Rfd1 {[%clk
0:02:00.8]} 15... Qe7 {[%clk 0:02:41.1]} 16. Rac1 {[%clk 0:01:58.8]} 16... Qf8
{[%clk 0:02:36.3]} 17. Ne5 {[%clk 0:01:42.8]} 17... Nxe5 {[%clk 0:02:29.3]} 18.
dxe5 {[%clk 0:01:42.5]} 18... Rxe5 {[%clk 0:02:29.1]} 19. Bxe5 {[%clk
0:01:43.2]} 19... Bxe5 {[%clk 0:02:30]} 0-1

[Event "Early-Titled-Tuesday-Blitz-January-30-2024"]
[Site "Chess.com"]
[Date "2024.01.30"]
[Round "1"]
[White "EsmeraldasAnderson03"]
[Black "JakubPulpan"]
[Result "1-0"]
[WhiteElo "2410"]
[BlackElo "2705"]
[TimeControl "180+1"]
[EndTime "8:03:22 PST"]
[Termination "EsmeraldasAnderson03 won by resignation"]

1. d4 {[%clk 0:02:53.3]} 1... a6 {[%clk 0:03:00.2]} 2. e4 {[%clk 0:02:50.9]}
2... b5 {[%clk 0:02:58.4]} 3. a4 {[%clk 0:02:50.4]} 3... Bb7 {[%clk 0:02:58.3]}
4. axb5 {[%clk 0:02:47.1]} 4... axb5 {[%clk 0:02:59.2]} 5. Rxa8 {[%clk
0:02:47.1]} 5... Bxa8 {[%clk 0:03:00.1]} 6. Bxb5 {[%clk 0:02:42.3]} 6... Bxe4
{[%clk 0:02:57.5]} 7. Nf3 {[%clk 0:02:42.3]} 7... e6 {[%clk 0:02:56.5]} 8. Nbd2
{[%clk 0:02:39.6]} 8... Bb7 {[%clk 0:02:52.8]} 9. O-O {[%clk 0:02:39.4]} 9...
Be7 {[%clk 0:02:40.7]} 10. c3 {[%clk 0:02:30.2]} 10... Nf6 {[%clk 0:02:39.2]}
11. Re1 {[%clk 0:02:30.4]} 11... O-O {[%clk 0:02:31]} 12. Bd3 {[%clk 0:02:30.8]}
12... d6 {[%clk 0:02:27.1]} 13. Ne4 {[%clk 0:02:30.7]} 13... Nbd7 {[%clk
0:02:25.2]} 14. h3 {[%clk 0:02:24.2]} 14... c5 {[%clk 0:02:13.6]} 15. dxc5
{[%clk 0:02:11.1]} 15... Nxe4 {[%clk 0:02:05]} 16. Bxe4 {[%clk 0:02:08.6]} 16...
Nxc5 {[%clk 0:02:04.1]} 17. Bxb7 {[%clk 0:02:07]} 17... Nxb7 {[%clk 0:02:05]}
18. b4 {[%clk 0:02:05.2]} 18... d5 {[%clk 0:02:04.8]} 19. Bf4 {[%clk 0:02:02]}
19... Nd6 {[%clk 0:02:00.8]} 20. Bxd6 {[%clk 0:02:01.9]} 20... Qxd6 {[%clk
0:01:59.6]} 21. Qd3 {[%clk 0:01:57.9]} 21... h6 {[%clk 0:01:58.7]} 22. Rb1
{[%clk 0:01:57.1]} 22... Bf6 {[%clk 0:01:50.3]} 23. c4 {[%clk 0:01:56.7]} 1-0

[Event "Early-Titled-Tuesday-Blitz-January-30-2024"]
[Site "Chess.com"]
[Date "2024.01.30"]
[Round "1"]
[White "Logman74"]
[Black "PawnEatingZombie"]
[Result "1-0"]
[WhiteElo "2576"]
[BlackElo "2148"]
[TimeControl "180+1"]
[EndTime "8:03:22 PST"]
[Termination "Logman74 won by resignation"]

1. e4 {[%clk 0:03:00.9]} 1... e6 {[%clk 0:03:00.3]} 2. d4 {[%clk 0:02:57.9]}
2... d5 {[%clk 0:03:00.6]} 3. Nc3 {[%clk 0:02:58.4]} 3... Nf6 {[%clk 0:03:00.8]}
4. Bg5 {[%clk 0:02:57.5]} 4... dxe4 {[%clk 0:03:00.4]} 5. Nxe4 {[%clk
0:02:57.1]} 5... Be7 {[%clk 0:03:00.9]} 6. Bxf6 {[%clk 0:02:56.7]} 6... Bxf6
{[%clk 0:03:01]} 7. Nf3 {[%clk 0:02:56.6]} 7... Nd7 {[%clk 0:02:59.5]} 8. Qd2
{[%clk 0:02:56.2]} 8... b6 {[%clk 0:02:58.1]} 9. Bd3 {[%clk 0:02:56]} 9... Bb7
{[%clk 0:02:58.2]} 10. O-O-O {[%clk 0:02:56.2]} 10... O-O {[%clk 0:02:56.7]} 11.
h4 {[%clk 0:02:56.1]} 11... c5 {[%clk 0:02:49.5]} 12. Nfg5 {[%clk 0:02:47.4]}
12... h6 {[%clk 0:02:46.1]} 13. Nd6 {[%clk 0:02:44.4]} 13... Bxg5 {[%clk
0:01:38.5]} 14. hxg5 {[%clk 0:02:41.1]} 14... Qe7 {[%clk 0:01:30]} 15. Nxb7
{[%clk 0:02:38.3]} 15... Rab8 {[%clk 0:01:26.4]} 16. gxh6 {[%clk 0:02:33.5]}
16... g6 {[%clk 0:01:25.7]} 17. dxc5 {[%clk 0:02:29]} 17... bxc5 {[%clk
0:01:11.9]} 18. Na5 {[%clk 0:02:24.1]} 1-0

[Event "Early-Titled-Tuesday-Blitz-January-30-2024"]
[Site "Chess.com"]
[Date "2024.01.30"]
[Round "1"]
[White "KuzubovYuriy"]
[Black "Kotlyar_K"]
[Result "1-0"]
[WhiteElo "2879"]
[BlackElo "2493"]
[TimeControl "180+1"]
[EndTime "8:03:28 PST"]
[Termination "KuzubovYuriy won by resignation"]

1. d4 {[%clk 0:03:00.9]} 1... Nf6 {[%clk 0:02:57.7]} 2. Nf3 {[%clk 0:03:01.2]}
2... g6 {[%clk 0:02:57]} 3. Nbd2 {[%clk 0:03:01.6]} 3... d5 {[%clk 0:02:56.5]}
4. b4 {[%clk 0:03:00.5]} 4... Bg7 {[%clk 0:02:53.7]} 5. Bb2 {[%clk 0:03:00.3]}
5... O-O {[%clk 0:02:49.1]} 6. e3 {[%clk 0:03:00.6]} 6... c6 {[%clk 0:02:46.5]}
7. c4 {[%clk 0:02:56.8]} 7... a5 {[%clk 0:02:18.7]} 8. b5 {[%clk 0:02:56.8]}
8... cxb5 {[%clk 0:02:11]} 9. cxb5 {[%clk 0:02:56.9]} 9... Nbd7 {[%clk
0:02:11.3]} 10. Bd3 {[%clk 0:02:53.3]} 10... Nb6 {[%clk 0:02:08.9]} 11. O-O
{[%clk 0:02:50.5]} 11... h6 {[%clk 0:02:01.6]} 12. Rc1 {[%clk 0:02:47.1]} 12...
Be6 {[%clk 0:02:01.2]} 13. Qb3 {[%clk 0:02:35.2]} 13... Qd7 {[%clk 0:01:50.2]}
14. Ne5 {[%clk 0:02:34.2]} 14... Qd8 {[%clk 0:01:43.2]} 15. Ba3 {[%clk
0:02:33.4]} 15... Nfd7 {[%clk 0:01:41.7]} 16. f4 {[%clk 0:02:31.7]} 16... f6
{[%clk 0:01:35.9]} 17. Nxg6 {[%clk 0:02:31]} 17... Rf7 {[%clk 0:01:36.4]} 18. f5
{[%clk 0:02:31.2]} 18... Nf8 {[%clk 0:01:31.7]} 19. Nxf8 {[%clk 0:02:28.6]}
19... Rxf8 {[%clk 0:01:31.2]} 20. fxe6 {[%clk 0:02:28.9]} 20... a4 {[%clk
0:01:26.8]} 21. Qd1 {[%clk 0:02:28.7]} 21... Qe8 {[%clk 0:01:17.1]} 22. Qg4
{[%clk 0:02:28.1]} 22... Kh8 {[%clk 0:01:16]} 23. Qf5 {[%clk 0:02:27.7]} 1-0

[Event "Early-Titled-Tuesday-Blitz-January-30-2024"]
[Site "Chess.com"]
[Date "2024.01.30"]
[Round "1"]
[White "Yeritsyaan"]
[Black "cycygogne"]
[Result "1-0"]
[WhiteElo "2626"]
[BlackElo "2289"]
[TimeControl "180+1"]
[EndTime "8:03:32 PST"]
[Termination "Yeritsyaan won by resignation"]

1. c4 {[%clk 0:02:59.2]} 1... c5 {[%clk 0:02:58.7]} 2. Nc3 {[%clk 0:02:59.1]}
2... g6 {[%clk 0:02:58.1]} 3. e4 {[%clk 0:02:57.1]} 3... Bg7 {[%clk 0:02:57.1]}
4. d3 {[%clk 0:02:57.6]} 4... Nc6 {[%clk 0:02:57.3]} 5. Be3 {[%clk 0:02:58.2]}
5... d6 {[%clk 0:02:56.3]} 6. g3 {[%clk 0:02:57.9]} 6... e5 {[%clk 0:02:55.6]}
7. Bg2 {[%clk 0:02:55.7]} 7... Nge7 {[%clk 0:02:55.7]} 8. Nge2 {[%clk
0:02:54.9]} 8... O-O {[%clk 0:02:55.8]} 9. Qd2 {[%clk 0:02:54]} 9... f5 {[%clk
0:02:52.7]} 10. Bh6 {[%clk 0:02:51.4]} 10... Nd4 {[%clk 0:02:39.7]} 11. Bxg7
{[%clk 0:02:51]} 11... Kxg7 {[%clk 0:02:39.6]} 12. exf5 {[%clk 0:02:49.1]} 12...
Nexf5 {[%clk 0:02:30.9]} 13. O-O {[%clk 0:02:44.7]} 13... Nxe2+ {[%clk
0:02:13.7]} 14. Nxe2 {[%clk 0:02:42.8]} 14... Nd4 {[%clk 0:02:11]} 15. Nxd4
{[%clk 0:02:42.1]} 15... cxd4 {[%clk 0:02:10.1]} 16. f4 {[%clk 0:02:41.5]} 16...
Qe7 {[%clk 0:01:58.2]} 17. fxe5 {[%clk 0:02:40.8]} 17... dxe5 {[%clk 0:01:59.1]}
18. Rxf8 {[%clk 0:02:39.9]} 18... Qxf8 {[%clk 0:01:56.6]} 19. Re1 {[%clk
0:02:37.4]} 19... Qd6 {[%clk 0:01:49.5]} 20. Qe2 {[%clk 0:02:24.5]} 20... Bf5
{[%clk 0:01:48.7]} 21. Bxb7 {[%clk 0:02:24.1]} 21... Rb8 {[%clk 0:01:48.8]} 22.
Bg2 {[%clk 0:02:23.4]} 22... Kf6 {[%clk 0:01:42.9]} 23. b3 {[%clk 0:02:19.9]}
23... a5 {[%clk 0:01:42.9]} 24. g4 {[%clk 0:02:15.2]} 24... Bd7 {[%clk
0:01:39.6]} 25. g5+ {[%clk 0:02:07.7]} 25... Kg7 {[%clk 0:01:39.7]} 26. Qxe5+
{[%clk 0:02:07.7]} 26... Qxe5 {[%clk 0:01:39.3]} 27. Rxe5 {[%clk 0:02:08.6]}
27... a4 {[%clk 0:01:38.3]} 28. Re7+ {[%clk 0:02:08.6]} 1-0

[Event "Early-Titled-Tuesday-Blitz-January-30-2024"]
[Site "Chess.com"]
[Date "2024.01.30"]
[Round "1"]
[White "amintabatabaei"]
[Black "krucki03"]
[Result "0-1"]
[WhiteElo "2943"]
[BlackElo "2533"]
[TimeControl "180+1"]
[EndTime "8:03:44 PST"]
[Termination "krucki03 won by resignation"]

1. d4 {[%clk 0:03:00.9]} 1... Nf6 {[%clk 0:02:59.4]} 2. c4 {[%clk 0:03:01.2]}
2... c5 {[%clk 0:02:58.7]} 3. d5 {[%clk 0:03:01]} 3... b5 {[%clk 0:02:59.2]} 4.
cxb5 {[%clk 0:02:52.4]} 4... a6 {[%clk 0:02:59.6]} 5. bxa6 {[%clk 0:02:51]} 5...
g6 {[%clk 0:02:59.8]} 6. Nc3 {[%clk 0:02:50.7]} 6... Bg7 {[%clk 0:03:00.2]} 7.
Nf3 {[%clk 0:02:47.9]} 7... O-O {[%clk 0:03:00.2]} 8. a7 {[%clk 0:02:43.9]} 8...
Rxa7 {[%clk 0:03:00.6]} 9. e4 {[%clk 0:02:44.1]} 9... e6 {[%clk 0:03:00.9]} 10.
Be2 {[%clk 0:02:41]} 10... exd5 {[%clk 0:03:01.3]} 11. exd5 {[%clk 0:02:41.3]}
11... d6 {[%clk 0:03:01.7]} 12. O-O {[%clk 0:02:41.4]} 12... Na6 {[%clk
0:03:00.3]} 13. h3 {[%clk 0:02:39]} 13... Re8 {[%clk 0:02:58.3]} 14. Bf4 {[%clk
0:02:38.8]} 14... Ne4 {[%clk 0:02:51.2]} 15. Bb5 {[%clk 0:02:29.1]} 15... Nxc3
{[%clk 0:02:37.2]} 16. bxc3 {[%clk 0:02:28.7]} 16... Bd7 {[%clk 0:02:37.8]} 17.
Bxd7 {[%clk 0:02:27]} 17... Qxd7 {[%clk 0:02:32.1]} 18. Qc2 {[%clk 0:02:19.2]}
18... Nc7 {[%clk 0:02:12.7]} 19. Rad1 {[%clk 0:02:08.6]} 19... Nb5 {[%clk
0:02:07.4]} 20. c4 {[%clk 0:01:37.8]} 20... Nc3 {[%clk 0:01:58.4]} 21. Rde1
{[%clk 0:01:38.4]} 21... Rxa2 {[%clk 0:01:56.1]} 22. Qb2 {[%clk 0:01:38.9]}
22... Rxb2 {[%clk 0:01:53.9]} 0-1

[Event "Early-Titled-Tuesday-Blitz-January-30-2024"]
[Site "Chess.com"]
[Date "2024.01.30"]
[Round "1"]
[White "Narek_Ghimoyan"]
[Black "Szparu"]
[Result "0-1"]
[WhiteElo "2425"]
[BlackElo "2769"]
[TimeControl "180+1"]
[EndTime "8:03:46 PST"]
[Termination "Szparu won by resignation"]

1. d4 {[%clk 0:03:00.9]} 1... d5 {[%clk 0:02:59.9]} 2. c4 {[%clk 0:03:00.5]}
2... e6 {[%clk 0:03:00]} 3. Nc3 {[%clk 0:03:00.3]} 3... Nf6 {[%clk 0:02:58.6]}
4. Nf3 {[%clk 0:02:59.4]} 4... dxc4 {[%clk 0:02:58]} 5. e4 {[%clk 0:02:59.2]}
5... b5 {[%clk 0:02:55.6]} 6. e5 {[%clk 0:02:58.9]} 6... Nd5 {[%clk 0:02:55.4]}
7. Nxb5 {[%clk 0:02:58.9]} 7... Nb6 {[%clk 0:02:56]} 8. Be2 {[%clk 0:02:57.2]}
8... Nc6 {[%clk 0:02:52.8]} 9. O-O {[%clk 0:02:57.1]} 9... Rb8 {[%clk
0:02:49.4]} 10. Nc3 {[%clk 0:02:55.7]} 10... Ba6 {[%clk 0:02:44.4]} 11. Qd2
{[%clk 0:02:55.1]} 11... Nb4 {[%clk 0:02:35.6]} 12. Qf4 {[%clk 0:02:50.1]} 12...
N6d5 {[%clk 0:02:31]} 13. Nxd5 {[%clk 0:02:47.2]} 13... Nxd5 {[%clk 0:02:30.8]}
14. Qg3 {[%clk 0:02:46.9]} 14... Qd7 {[%clk 0:02:21.6]} 15. Nd2 {[%clk
0:02:46.1]} 15... Qc6 {[%clk 0:02:18.1]} 16. Ne4 {[%clk 0:02:44.2]} 16... Nb4
{[%clk 0:02:07.5]} 17. Bf3 {[%clk 0:02:42.9]} 17... Qd7 {[%clk 0:02:06.3]} 18.
Be3 {[%clk 0:02:41.6]} 18... Nc2 {[%clk 0:02:04.7]} 19. Rac1 {[%clk 0:02:35.5]}
19... Nxe3 {[%clk 0:01:52.1]} 20. fxe3 {[%clk 0:02:34.8]} 20... c3 {[%clk
0:01:52.8]} 21. bxc3 {[%clk 0:02:30.5]} 21... Bxf1 {[%clk 0:01:52.5]} 22. Rxf1
{[%clk 0:02:31.4]} 22... Kd8 {[%clk 0:01:26.4]} 23. Bh5 {[%clk 0:02:29.3]} 23...
g6 {[%clk 0:01:24.3]} 24. Ng5 {[%clk 0:02:28.3]} 0-1

[Event "Early-Titled-Tuesday-Blitz-January-30-2024"]
[Site "Chess.com"]
[Date "2024.01.30"]
[Round "1"]
[White "Lady_Nika"]
[Black "MagnusCarlsen"]
[Result "0-1"]
[WhiteElo "2550"]
[BlackElo "3295"]
[TimeControl "180+1"]
[EndTime "8:04:20 PST"]
[Termination "MagnusCarlsen won by resignation"]

1. e4 {[%clk 0:03:00.9]} 1... Nc6 {[%clk 0:02:59.5]} 2. d4 {[%clk 0:03:00.6]}
2... d5 {[%clk 0:02:59.1]} 3. e5 {[%clk 0:02:59.9]} 3... Bf5 {[%clk 0:02:58.3]}
4. c3 {[%clk 0:02:59]} 4... e6 {[%clk 0:02:58.5]} 5. f4 {[%clk 0:02:59.1]} 5...
f6 {[%clk 0:02:57.7]} 6. Nf3 {[%clk 0:02:58.9]} 6... g5 {[%clk 0:02:57.6]} 7.
exf6 {[%clk 0:02:47.4]} 7... g4 {[%clk 0:02:57.3]} 8. Ne5 {[%clk 0:02:47.1]}
8... Nxf6 {[%clk 0:02:56.8]} 9. Bd3 {[%clk 0:02:38.3]} 9... Bd6 {[%clk
0:02:53.9]} 10. O-O {[%clk 0:02:33.2]} 10... O-O {[%clk 0:02:53]} 11. Be3 {[%clk
0:02:27.2]} 11... Ne7 {[%clk 0:02:51.6]} 12. Bf2 {[%clk 0:01:53.1]} 12... Qe8
{[%clk 0:02:48.5]} 13. Bh4 {[%clk 0:01:47.8]} 13... Ne4 {[%clk 0:02:46.1]} 14.
Bxe7 {[%clk 0:01:27.8]} 14... Qxe7 {[%clk 0:02:45.8]} 15. Nxg4 {[%clk
0:01:26.1]} 15... Qh4 {[%clk 0:02:43.9]} 16. Ne5 {[%clk 0:01:25.3]} 16... Bxe5
{[%clk 0:02:44.2]} 17. dxe5 {[%clk 0:01:16.8]} 17... Kh8 {[%clk 0:02:44.3]} 18.
Qc2 {[%clk 0:01:08.8]} 18... Rg8 {[%clk 0:02:43.8]} 19. Nd2 {[%clk 0:00:35.4]}
19... Rxg2+ {[%clk 0:02:43]} 20. Kxg2 {[%clk 0:00:33.2]} 20... Rg8+ {[%clk
0:02:43.2]} 21. Kf3 {[%clk 0:00:30.8]} 21... Qh3+ {[%clk 0:02:38.9]} 22. Ke2
{[%clk 0:00:29.6]} 22... Rg2+ {[%clk 0:02:39.3]} 23. Kd1 {[%clk 0:00:29.6]}
23... Rxd2+ {[%clk 0:02:39.8]} 24. Qxd2 {[%clk 0:00:28.8]} 24... Nxd2 {[%clk
0:02:40.7]} 0-1

[Event "Early-Titled-Tuesday-Blitz-January-30-2024"]
[Site "Chess.com"]
[Date "2024.01.30"]
[Round "1"]
[White "Bkmzzzzz"]
[Black "Adar_07"]
[Result "1-0"]
[WhiteElo "2348"]
[BlackElo "2640"]
[TimeControl "180+1"]
[EndTime "8:04:24 PST"]
[Termination "Bkmzzzzz won by resignation"]

1. e4 {[%clk 0:03:00.9]} 1... e6 {[%clk 0:02:53.3]} 2. Nf3 {[%clk 0:03:00.6]}
2... d5 {[%clk 0:02:54.2]} 3. exd5 {[%clk 0:03:01.2]} 3... exd5 {[%clk
0:02:55.1]} 4. d4 {[%clk 0:03:01.4]} 4... Nf6 {[%clk 0:02:55.4]} 5. Bd3 {[%clk
0:03:01.1]} 5... Bd6 {[%clk 0:02:55.8]} 6. O-O {[%clk 0:03:01.7]} 6... O-O
{[%clk 0:02:56.4]} 7. c4 {[%clk 0:03:01.9]} 7... dxc4 {[%clk 0:02:56.1]} 8. Bxc4
{[%clk 0:03:02.8]} 8... Nc6 {[%clk 0:02:54.6]} 9. Bg5 {[%clk 0:03:02.9]} 9...
Bg4 {[%clk 0:02:54.3]} 10. Nc3 {[%clk 0:03:02.3]} 10... h6 {[%clk 0:02:52.9]}
11. Bh4 {[%clk 0:02:59.7]} 11... Bxf3 {[%clk 0:02:42.5]} 12. Qxf3 {[%clk
0:02:58.9]} 12... Nxd4 {[%clk 0:02:40.9]} 13. Qxb7 {[%clk 0:02:59]} 13... Rb8
{[%clk 0:02:40.3]} 14. Qxa7 {[%clk 0:02:51.4]} 14... Rxb2 {[%clk 0:02:37.3]} 15.
Nd5 {[%clk 0:02:45.8]} 15... Bxh2+ {[%clk 0:01:50.1]} 16. Kxh2 {[%clk
0:02:42.6]} 16... Ng4+ {[%clk 0:01:49.9]} 17. Kh3 {[%clk 0:02:29]} 17... Qd7
{[%clk 0:01:49.5]} 18. Qxd4 {[%clk 0:02:24.4]} 18... Ne3+ {[%clk 0:00:49.5]} 19.
g4 {[%clk 0:01:57.3]} 19... Nxg4 {[%clk 0:00:46]} 20. Ne7+ {[%clk 0:01:52.2]}
1-0

[Event "Early-Titled-Tuesday-Blitz-January-30-2024"]
[Site "Chess.com"]
[Date "2024.01.30"]
[Round "1"]
[White "BocharovD"]
[Black "Cheer_Down"]
[Result "1-0"]
[WhiteElo "2838"]
[BlackElo "2466"]
[TimeControl "180+1"]
[EndTime "8:04:31 PST"]
[Termination "BocharovD won by resignation"]

1. e4 {[%clk 0:03:00.9]} 1... c5 {[%clk 0:02:58.1]} 2. Nf3 {[%clk 0:03:00.2]}
2... d6 {[%clk 0:02:57.9]} 3. d4 {[%clk 0:02:58.9]} 3... cxd4 {[%clk 0:02:58.8]}
4. Nxd4 {[%clk 0:02:58.7]} 4... Nf6 {[%clk 0:02:59.4]} 5. Nc3 {[%clk 0:02:58.4]}
5... a6 {[%clk 0:02:59.8]} 6. Be2 {[%clk 0:02:49.4]} 6... e5 {[%clk 0:02:59.2]}
7. Nf3 {[%clk 0:02:49.7]} 7... Be7 {[%clk 0:02:57.9]} 8. O-O {[%clk 0:02:49.2]}
8... O-O {[%clk 0:02:56.5]} 9. Bg5 {[%clk 0:02:47.6]} 9... Nbd7 {[%clk
0:02:56.2]} 10. a4 {[%clk 0:02:46.5]} 10... b6 {[%clk 0:02:48.1]} 11. Bc4 {[%clk
0:02:45.9]} 11... Bb7 {[%clk 0:02:47.1]} 12. Re1 {[%clk 0:02:45.9]} 12... Rc8
{[%clk 0:02:43.1]} 13. Bb3 {[%clk 0:02:46.1]} 13... h6 {[%clk 0:02:28.4]} 14.
Bxf6 {[%clk 0:02:45.2]} 14... Nxf6 {[%clk 0:02:28.2]} 15. Nh4 {[%clk 0:02:43.4]}
15... Rxc3 {[%clk 0:02:23.7]} 16. bxc3 {[%clk 0:02:42.6]} 16... Nxe4 {[%clk
0:02:22.7]} 17. Nf5 {[%clk 0:02:41.2]} 17... d5 {[%clk 0:02:04.2]} 18. Bxd5
{[%clk 0:02:38.9]} 18... Bxd5 {[%clk 0:01:48.3]} 19. Qxd5 {[%clk 0:02:39.8]}
19... Nxc3 {[%clk 0:01:48.2]} 20. Qc4 {[%clk 0:02:19.3]} 20... Bf6 {[%clk
0:01:29.9]} 21. Qxc3 {[%clk 0:02:18.7]} 21... e4 {[%clk 0:01:26.5]} 22. Qc4
{[%clk 0:02:18.1]} 22... Bxa1 {[%clk 0:01:25.8]} 23. Rxa1 {[%clk 0:02:08.5]}
23... Qf6 {[%clk 0:01:21]} 24. Nd4 {[%clk 0:02:08.6]} 24... b5 {[%clk
0:01:21.1]} 25. axb5 {[%clk 0:02:08]} 25... axb5 {[%clk 0:01:21.5]} 26. Qc5
{[%clk 0:02:05.5]} 26... Rd8 {[%clk 0:01:02.9]} 27. c3 {[%clk 0:02:03.2]} 27...
e3 {[%clk 0:00:55.4]} 28. fxe3 {[%clk 0:02:04.1]} 28... Qg5 {[%clk 0:00:55.6]}
29. Qxg5 {[%clk 0:02:02.6]} 1-0